bitfinex/quotes_BTCUSD_20250607
["timestamp","ask_amount","ask_price","bid_price","bid_amount"]
[1749318968865,4.5211814,105560.0,105550.0,0.00113593]
[1749318969081,4.4927024,105560.0,105550.0,0.00113593]
[1749318969292,4.51452442,105560.0,105550.0,0.00113593]
[1749318969735,4.52118117,105560.0,105550.0,0.00113593]
[1749318969955,4.51452432,105560.0,105550.0,0.00113593]
[1749318970161,4.52118115,105560.0,105550.0,0.00113593]
[1749318970361,4.50343037,105560.0,105550.0,0.00113593]
[1749318970537,4.52118119,105560.0,105550.0,0.00113593]
[1749318970765,4.51452469,105560.0,105550.0,0.00113593]
[1749318971006,4.5145246,105560.0,105550.0,0.00113593]
[1749318971232,4.50343033,105560.0,105550.0,0.00113593]
[1749318971401,4.51452449,105560.0,105550.0,0.00113593]
[1749318971607,4.51452469,105560.0,105550.0,0.00113593]
[1749318971815,4.52118126,105560.0,105550.0,0.00113593]
[1749318972019,0.39637817,105560.0,105550.0,0.00113593]
[1749318972229,4.52118117,105560.0,105550.0,0.00113593]
[1749318972378,4.48604568,105560.0,105550.0,0.00113593]
[1749318972604,4.47495139,105560.0,105550.0,0.00113593]
[1749318972799,4.47495117,105560.0,105550.0,0.00113593]
[1749318972999,4.47495107,105560.0,105550.0,0.00113593]
[1749318973205,4.48604489,105560.0,105550.0,0.00113593]
[1749318973402,4.49270116,105560.0,105550.0,0.00113593]
[1749318973618,4.46829483,105560.0,105550.0,0.00113593]
[1749318973818,4.48604495,105560.0,105550.0,0.00113593]
[1749318973994,0.36124137,105560.0,105550.0,0.00113593]
[1749318974288,4.49270045,105560.0,105550.0,0.00113593]
[1749318974499,4.47495087,105560.0,105550.0,0.00113593]
[1749318974662,4.4749509,105560.0,105550.0,0.00113593]
[1749318974848,4.4927005,105560.0,105550.0,0.00113593]
[1749318975625,4.49269584,105560.0,105550.0,0.00113593]
[1749318975990,4.47494966,105560.0,105550.0,0.00113593]
[1749318976201,4.48604112,105560.0,105550.0,0.00113593]
[1749318976419,4.47494967,105560.0,105550.0,0.00113593]
[1749318976628,4.48604074,105560.0,105550.0,0.00113593]
[1749318976836,4.49269548,105560.0,105550.0,0.00113593]
[1749318977482,4.4926917,105560.0,105550.0,0.00113593]
[1749318977684,4.48603782,105560.0,105550.0,0.00113593]
[1749318977919,4.46829483,105560.0,105550.0,0.00113593]
[1749318978112,4.49269156,105560.0,105550.0,0.00113593]
[1749318978319,4.66376065,105550.0,105540.0,0.31851833]
[1749318978436,4.76029606,105550.0,105540.0,0.31851833]
[1749318978639,4.78469273,105550.0,105540.0,0.31851833]
[1749318979278,4.78469275,105550.0,105540.0,0.31812237]
[1749318979506,4.77903909,105550.0,105540.0,0.32012237]
[1749318979714,4.76894969,105550.0,105540.0,0.32212237]
[1749318979958,4.7689497,105550.0,105540.0,0.32212237]
[1749318980264,4.78669275,105550.0,105540.0,0.32212237]
[1749318980899,4.78669271,105550.0,105540.0,0.32212237]
[1749318981107,4.76894968,105550.0,105540.0,0.32212237]
[1749318981327,4.76229606,105550.0,105540.0,0.32212237]
[1749318981537,4.78003906,105550.0,105540.0,0.32212237]
[1749318981746,4.78669272,105550.0,105540.0,0.32212237]
[1749318982616,4.78669254,105550.0,105540.0,0.32212237]
[1749318982858,4.78003859,105550.0,105540.0,0.32212237]
[1749318983067,4.79696708,105550.0,105540.0,0.32212237]
[1749318983272,4.81470962,105550.0,105540.0,0.32212237]
[1749318983502,4.79031364,105550.0,105540.0,0.32212237]
[1749318983722,4.81470963,105550.0,105540.0,0.32212237]
[1749318984436,4.81470919,105550.0,105540.0,0.32212237]
[1749318985132,4.80805586,105550.0,105540.0,0.32212237]
[1749318985360,4.79031364,105550.0,105540.0,0.32212237]
[1749318985593,4.81470919,105550.0,105540.0,0.32212237]
[1749318986039,4.81470861,105550.0,105540.0,0.32212237]
[1749318986257,4.79696669,105550.0,105540.0,0.32212237]
[1749318986455,4.79031364,105550.0,105540.0,0.32212237]
[1749318986671,4.81470813,105550.0,105540.0,0.32212237]
[1749318986887,4.81470812,105550.0,105540.0,0.32212237]
[1749318987106,4.81470813,105550.0,105540.0,0.32212237]
[1749318987963,4.8147081,105550.0,105540.0,0.32212237]
[1749318988377,4.81470806,105550.0,105540.0,0.32212237]
[1749318988593,4.79696666,105550.0,105540.0,0.32212237]
[1749318988809,4.79696665,105550.0,105540.0,0.32212237]
[1749318989050,4.81470803,105550.0,105540.0,0.32212237]
[1749318989249,4.81470807,105550.0,105540.0,0.32212237]
[1749318989703,4.81470816,105550.0,105540.0,0.32212237]
[1749318989903,4.81470817,105550.0,105540.0,0.32212237]
[1749318990114,4.81470812,105550.0,105540.0,0.32212237]
[1749318990314,4.80805508,105550.0,105540.0,0.32212237]
[1749318990517,4.80805406,105550.0,105540.0,0.32212237]
[1749318990722,4.81470655,105550.0,105540.0,0.32212237]
[1749318991289,4.80805389,105550.0,105540.0,0.32212237]
[1749318991552,4.79031364,105550.0,105540.0,0.32212237]
[1749318991937,4.80805356,105550.0,105540.0,0.32212237]
[1749318992137,4.81470597,105550.0,105540.0,0.32212237]
[1749318992457,4.79696615,105550.0,105540.0,0.32212237]
[1749318992700,4.80805434,105550.0,105540.0,0.32212237]
[1749318992888,4.79031364,105550.0,105540.0,0.32212237]
[1749318993062,4.80805474,105550.0,105540.0,0.32212237]
[1749318993230,4.79031364,105550.0,105540.0,0.32212237]
[1749318993431,4.81470762,105550.0,105540.0,0.32212237]
[1749318993653,4.79031364,105550.0,105540.0,0.32212237]
[1749318993853,4.81470764,105550.0,105540.0,0.32212237]
[1749318994068,4.80805473,105550.0,105540.0,0.32212237]
[1749318994266,4.81470769,105550.0,105540.0,0.32212237]
[1749318994440,4.80805477,105550.0,105540.0,0.32212237]
[1749318994673,4.81470769,105550.0,105540.0,0.32212237]
[1749318994875,4.80805645,105550.0,105540.0,0.32212237]
[1749318995504,4.79031364,105550.0,105540.0,0.32212237]
[1749318995678,4.79696719,105550.0,105540.0,0.32212237]
[1749318995878,4.81471,105550.0,105540.0,0.32212237]
[1749318996541,4.79696718,105550.0,105540.0,0.32212237]
[1749318996748,4.81470997,105550.0,105540.0,0.32212237]
[1749318996947,4.79031364,105550.0,105540.0,0.32212237]
[1749318997149,4.80805643,105550.0,105540.0,0.32212237]
[1749318997333,4.81470997,105550.0,105540.0,0.32212237]
[1749318997540,4.79031364,105550.0,105540.0,0.32212237]
[1749318997737,4.81470996,105550.0,105540.0,0.32212237]
[1749318998257,4.81471021,105550.0,105540.0,0.32212237]
[1749318998461,4.80805667,105550.0,105540.0,0.32212237]
[1749318998671,4.81471499,105550.0,105540.0,0.32212237]
[1749318998907,4.79031364,105550.0,105540.0,0.32212237]
[1749318999321,4.81471502,105550.0,105540.0,0.32212237]
[1749319000598,4.81471499,105550.0,105540.0,0.32212237]
[1749319000801,4.79696856,105550.0,105540.0,0.32212237]
[1749319000946,4.80806009,105550.0,105540.0,0.32212237]
[1749319001152,4.80806008,105550.0,105540.0,0.32212237]
[1749319001353,4.81471499,105550.0,105540.0,0.32212237]
[1749319001781,4.81471511,105550.0,105540.0,0.32212237]
[1749319002147,4.81471512,105550.0,105540.0,0.32212237]
[1749319002516,4.81471505,105550.0,105540.0,0.32212237]
[1749319002669,4.80806017,105550.0,105540.0,0.32212237]
[1749319002869,4.81471511,105550.0,105540.0,0.32212237]
[1749319003387,4.80806017,105550.0,105540.0,0.29182237]
[1749319003596,4.81471513,105550.0,105540.0,0.29182237]
[1749319003973,4.7969686,105550.0,105540.0,0.29182237]
[1749319004187,4.81471516,105550.0,105540.0,0.29182237]
[1749319004387,4.80806016,105550.0,105540.0,0.29182237]
[1749319004608,4.79031364,105550.0,105540.0,0.29182237]
[1749319004815,4.80806016,105550.0,105540.0,0.29182237]
[1749319004990,4.81471512,105550.0,105540.0,0.29182237]
[1749319005992,4.80806022,105550.0,105540.0,0.29182237]
[1749319006241,4.79031364,105550.0,105540.0,0.29182237]
[1749319006391,4.80806021,105550.0,105540.0,0.29182237]
[1749319006600,4.81471517,105550.0,105540.0,0.29182237]
[1749319007049,4.81471511,105550.0,105540.0,0.29182237]
[1749319007712,4.79696859,105550.0,105540.0,0.29182237]
[1749319007884,4.80806021,105550.0,105540.0,0.29182237]
[1749319008094,4.81471518,105550.0,105540.0,0.29182237]
[1749319008296,4.79696861,105550.0,105540.0,0.29182237]
[1749319008519,4.81471521,105550.0,105540.0,0.29182237]
[1749319009338,4.8147152,105550.0,105540.0,0.29182237]
[1749319009485,4.81471517,105550.0,105540.0,0.29182237]
[1749319009688,4.80806022,105550.0,105540.0,0.29182237]
[1749319009882,4.7969686,105550.0,105540.0,0.29182237]
[1749319010089,4.79031364,105550.0,105540.0,0.29182237]
[1749319010313,4.8147152,105550.0,105540.0,0.29182237]
[1749319010895,4.81471518,105550.0,105540.0,0.29182237]
[1749319011093,4.81471524,105550.0,105540.0,0.29182237]
[1749319011295,4.81471522,105550.0,105540.0,0.29182237]
[1749319011491,4.80806028,105550.0,105540.0,0.29182237]
[1749319011700,4.7969686,105550.0,105540.0,0.29182237]
[1749319011896,4.79696863,105550.0,105540.0,0.29182237]
[1749319012138,4.80806028,105550.0,105540.0,0.29182237]
[1749319012358,4.81471565,105550.0,105540.0,0.29182237]
[1749319013014,4.8147155,105550.0,105540.0,0.29182237]
[1749319013226,4.79696858,105550.0,105540.0,0.29182237]
[1749319013637,4.79031364,105550.0,105540.0,0.29182237]
[1749319014030,4.81471575,105550.0,105540.0,0.29182237]
[1749319014446,4.81471604,105550.0,105540.0,0.29182237]
[1749319014657,4.80806089,105550.0,105540.0,0.29182237]
[1749319014855,4.80806188,105550.0,105540.0,0.29182237]
[1749319014997,4.79696934,105550.0,105540.0,0.29182237]
[1749319015201,4.79031364,105550.0,105540.0,0.29182237]
[1749319015728,4.81471798,105550.0,105540.0,0.29182237]
[1749319016692,4.80806229,105550.0,105540.0,0.29182237]
[1749319016880,4.79031364,105550.0,105540.0,0.29182237]
[1749319017083,4.80806222,105550.0,105540.0,0.29182237]
[1749319017287,4.81471793,105550.0,105540.0,0.29182237]
[1749319017512,4.80806222,105550.0,105540.0,0.29182237]
[1749319017636,4.79031364,105550.0,105540.0,0.29182237]
[1749319018093,4.79696936,105550.0,105540.0,0.29182237]
[1749319018427,4.80806221,105550.0,105540.0,0.29182237]
[1749319018629,4.79696934,105550.0,105540.0,0.29182237]
[1749319018830,4.80806219,105550.0,105540.0,0.29182237]
[1749319019031,4.80806227,105550.0,105540.0,0.29182237]
[1749319019248,4.79696935,105550.0,105540.0,0.29182237]
[1749319019484,4.79696934,105550.0,105540.0,0.29182237]
[1749319019717,4.79696943,105550.0,105540.0,0.30762237]
[1749319019965,4.81472028,105550.0,105540.0,0.30762237]
[1749319020171,4.79031364,105550.0,105540.0,0.30762237]
[1749319020404,4.81472094,105550.0,105540.0,0.30762237]
[1749319020603,4.79697019,105550.0,105540.0,0.30762237]
[1749319020784,4.81472098,105550.0,105540.0,0.30762237]
[1749319020991,4.81472091,105550.0,105540.0,0.30762237]
[1749319021166,4.79031364,105550.0,105540.0,0.30762237]
[1749319021352,4.80806437,105550.0,105540.0,0.30762237]
[1749319021564,4.79697016,105550.0,105540.0,0.30762237]
[1749319021971,4.79031364,105550.0,105540.0,0.30762237]
[1749319022163,4.81472092,105550.0,105540.0,0.30762237]
[1749319022540,4.79697017,105550.0,105540.0,0.30762237]
[1749319022665,4.80806439,105550.0,105540.0,0.30762237]
[1749319022883,4.81472092,105550.0,105540.0,0.30762237]
[1749319023486,4.79697017,105550.0,105540.0,0.30762237]
[1749319023734,4.81472092,105550.0,105540.0,0.30762237]
[1749319024389,4.79697017,105550.0,105540.0,0.30762237]
[1749319024518,4.80806439,105550.0,105540.0,0.30762237]
[1749319025010,4.80806415,105550.0,105540.0,0.30762237]
[1749319025236,4.81472057,105550.0,105540.0,0.30762237]
[1749319026098,4.81472052,105550.0,105540.0,0.30762237]
[1749319026299,4.79031364,105550.0,105540.0,0.30762237]
[1749319026504,4.81472041,105550.0,105540.0,0.30762237]
[1749319026711,4.79697001,105550.0,105540.0,0.30762237]
[1749319027134,4.80806405,105550.0,105540.0,0.30762237]
[1749319027312,4.81472055,105550.0,105540.0,0.30762237]
[1749319027519,4.79697006,105550.0,105540.0,0.30762237]
[1749319027745,4.79697001,105550.0,105540.0,0.30762237]
[1749319027921,4.79031364,105550.0,105540.0,0.30762237]
[1749319028129,4.81472018,105550.0,105540.0,0.30762237]
[1749319028281,4.79697,105550.0,105540.0,0.30762237]
[1749319028480,4.80806383,105550.0,105540.0,0.30762237]
[1749319028810,4.80806382,105550.0,105540.0,0.30762237]
[1749319029018,4.81472013,105550.0,105540.0,0.30762237]
[1749319029219,4.81472019,105550.0,105540.0,0.30762237]
[1749319029384,4.81472029,105550.0,105540.0,0.30762237]
[1749319029596,4.79031364,105550.0,105540.0,0.30762237]
[1749319030243,4.81472034,105550.0,105540.0,0.30762237]
[1749319030730,4.79696999,105550.0,105540.0,0.30762237]
[1749319031070,4.81472018,105550.0,105540.0,0.30762237]
[1749319031281,4.79696996,105550.0,105540.0,0.30762237]
[1749319031485,4.79031364,105550.0,105540.0,0.30762237]
[1749319031699,4.79696994,105550.0,105540.0,0.30762237]
[1749319031904,4.80806384,105550.0,105540.0,0.30762237]
[1749319032113,4.79696996,105550.0,105540.0,0.30762237]
[1749319032312,4.80806383,105550.0,105540.0,0.30762237]
[1749319032574,4.79697001,105550.0,105540.0,0.30762237]
[1749319032718,4.80806397,105550.0,105540.0,0.30762237]
[1749319032923,4.81472034,105550.0,105540.0,0.30762237]
[1749319033134,4.82137672,105550.0,105540.0,0.30762237]
[1749319033315,4.82137651,105550.0,105540.0,0.30762237]
[1749319033514,4.82137639,105550.0,105540.0,0.30762237]
[1749319033711,4.8213764,105550.0,105540.0,0.30762237]
[1749319034140,4.81472004,105550.0,105540.0,0.30762237]
[1749319034390,4.81472001,105550.0,105540.0,0.30762237]
[1749319034599,4.79697001,105550.0,105540.0,0.30762237]
[1749319034803,4.82137621,105550.0,105540.0,0.30762237]
[1749319035038,4.82137626,105550.0,105540.0,0.30762237]
[1749319035255,4.82137629,105550.0,105540.0,0.30762237]
[1749319035501,4.82137585,105550.0,105540.0,0.30762237]
[1749319035727,4.82137659,105550.0,105540.0,0.30762237]
[1749319035952,4.8213766,105550.0,105540.0,0.32322237]
[1749319036191,4.82137661,105550.0,105540.0,0.32322237]
[1749319036412,4.82137666,105550.0,105540.0,0.32322237]
[1749319036620,4.79697001,105550.0,105540.0,0.32322237]
[1749319037047,4.82137779,105550.0,105540.0,0.32322237]
[1749319037256,4.80362703,105550.0,105540.0,0.32322237]
[1749319037650,4.81472207,105550.0,105540.0,0.32322237]
[1749319038160,4.80362725,105550.0,105540.0,0.32322237]
[1749319038351,4.82138129,105550.0,105540.0,0.32322237]
[1749319038574,4.81028501,105550.0,105540.0,0.03654237]
[1749319038710,4.82138129,105550.0,105540.0,0.32322237]
[1749319038910,4.82803947,105550.0,105540.0,0.32322237]
[1749319039118,4.82804054,105550.0,105540.0,0.32322237]
[1749319039320,4.82138238,105550.0,105540.0,0.32322237]
[1749319039520,4.82804054,105550.0,105540.0,0.32322237]
[1749319039784,4.81028542,105550.0,105540.0,0.32322237]
[1749319040279,4.82138238,105550.0,105540.0,0.32322237]
[1749319040607,4.82804128,105550.0,105540.0,0.30762237]
[1749319040885,4.82138291,105550.0,105540.0,0.30762237]
[1749319041041,4.82138301,105550.0,105540.0,0.30762237]
[1749319041251,4.82804142,105550.0,105540.0,0.30762237]
[1749319041873,4.82138302,105550.0,105540.0,0.30762237]
[1749319042262,4.82804139,105550.0,105540.0,0.30762237]
[1749319042462,4.82804079,105550.0,105540.0,0.30762237]
[1749319042688,4.82804074,105550.0,105540.0,0.30762237]
[1749319042880,4.82138297,105550.0,105540.0,0.30762237]
[1749319043110,4.80362725,105550.0,105540.0,0.30762237]
[1749319043312,4.82138298,105550.0,105540.0,0.30762237]
[1749319043496,4.82138297,105550.0,105540.0,0.30762237]
[1749319043701,4.81028565,105550.0,105540.0,0.30762237]
[1749319043905,4.82138314,105550.0,105540.0,0.30762237]
[1749319044345,4.82804164,105550.0,105540.0,0.30762237]
[1749319044679,4.82138317,105550.0,105540.0,0.30762237]
[1749319044894,4.80362725,105550.0,105540.0,0.30762237]
[1749319045038,4.82138317,105550.0,105540.0,0.30762237]
[1749319045224,4.82804167,105550.0,105540.0,0.30762237]
[1749319045433,4.81028573,105550.0,105540.0,0.30762237]
[1749319045656,4.82138321,105550.0,105540.0,0.30762237]
[1749319045834,4.80362725,105550.0,105540.0,0.30762237]
[1749319046036,4.82804163,105550.0,105540.0,0.29182237]
[1749319046259,4.81028572,105550.0,105540.0,0.29182237]
[1749319046460,4.82804267,105550.0,105540.0,0.29182237]
[1749319046666,4.82804276,105550.0,105540.0,0.29182237]
[1749319046994,4.82804333,105550.0,105540.0,0.29182237]
[1749319047205,4.81028618,105550.0,105540.0,0.29182237]
[1749319047406,4.82138436,105550.0,105540.0,0.29070237]
[1749319047823,4.82804325,105550.0,105540.0,0.29070237]
[1749319047978,4.82804323,105550.0,105540.0,0.29070237]
[1749319048596,4.82138438,105550.0,105540.0,0.29070237]
[1749319048796,4.82804332,105550.0,105540.0,0.29070237]
[1749319048991,4.82804328,105550.0,105540.0,0.29070237]
[1749319049195,4.81028617,105550.0,105540.0,0.29070237]
[1749319049573,4.82804331,105550.0,105540.0,0.29070237]
[1749319050168,4.82803917,105550.0,105540.0,0.29070237]
[1749319050308,4.82803911,105550.0,105540.0,0.29070237]
[1749319050503,4.80362725,105550.0,105540.0,0.29070237]
[1749319050739,4.82803846,105550.0,105540.0,0.29070237]
[1749319050940,4.81028493,105550.0,105540.0,0.29070237]
[1749319051141,4.82803876,105550.0,105540.0,0.29070237]
[1749319051344,4.81028502,105550.0,105540.0,0.29070237]
[1749319051555,4.82803874,105550.0,105540.0,0.29070237]
[1749319051755,4.82803913,105550.0,105540.0,0.29070237]
[1749319052430,4.82803911,105550.0,105540.0,0.29070237]
[1749319052629,4.82138133,105550.0,105540.0,0.29070237]
[1749319053054,4.82803911,105550.0,105540.0,0.29070237]
[1749319053453,4.82803901,105550.0,105540.0,0.29070237]
[1749319053866,4.82138119,105550.0,105540.0,0.29070237]
[1749319054075,4.82803895,105550.0,105540.0,0.29070237]
[1749319054279,4.80362725,105550.0,105540.0,0.29070237]
[1749319054508,4.81028502,105550.0,105540.0,0.29070237]
[1749319054713,4.82138131,105550.0,105540.0,0.29070237]
[1749319054868,4.81028483,105550.0,105540.0,0.29070237]
[1749319055085,4.8280384,105550.0,105540.0,0.29070237]
[1749319055496,4.82138092,105550.0,105540.0,0.29070237]
[1749319055781,4.80362725,105550.0,105540.0,0.29070237]
[1749319056476,4.82138289,105550.0,105540.0,0.29070237]
[1749319056735,4.8280413,105550.0,105540.0,0.29070237]
[1749319057178,4.82138301,105550.0,105540.0,0.29070237]
[1749319057386,4.8280417,105550.0,105540.0,0.29070237]
[1749319057601,4.82804243,105550.0,105540.0,0.00402237]
[1749319057814,4.80362725,105550.0,105540.0,0.29070237]
[1749319058022,4.82138366,105550.0,105540.0,0.29070237]
[1749319058225,4.82804241,105550.0,105540.0,0.29070237]
[1749319058973,4.82804239,105550.0,105540.0,0.29070237]
[1749319059183,4.82804238,105550.0,105540.0,0.29070237]
[1749319059377,4.80362725,105550.0,105540.0,0.29070237]
[1749319059601,4.8280426,105550.0,105540.0,0.29070237]
[1749319059945,4.81028577,105550.0,105540.0,0.29070237]
[1749319060153,4.81028575,105550.0,105540.0,0.29070237]
[1749319060353,4.82804182,105550.0,105540.0,0.29070237]
[1749319060556,4.82804185,105550.0,105540.0,0.29070237]
[1749319060784,4.81028573,105550.0,105540.0,0.29070237]
[1749319061070,4.82804156,105550.0,105540.0,0.29070237]
[1749319061276,4.81028567,105550.0,105540.0,0.29070237]
[1749319061478,4.82804137,105550.0,105540.0,0.29070237]
[1749319061940,4.80362725,105550.0,105540.0,0.29070237]
[1749319062145,4.82804163,105550.0,105540.0,0.29070237]
[1749319062358,4.82804241,105550.0,105540.0,0.29070237]
[1749319062563,4.82804245,105550.0,105540.0,0.29070237]
[1749319062717,4.82138366,105550.0,105540.0,0.29070237]
[1749319062914,4.81028587,105550.0,105540.0,0.29070237]
[1749319063352,4.82138322,105550.0,105540.0,0.29070237]
[1749319063957,4.80362725,105550.0,105540.0,0.29070237]
[1749319064162,4.8280421,105550.0,105540.0,0.29070237]
[1749319065375,4.80362725,105550.0,105540.0,0.29070237]
[1749319065554,4.8280418,105550.0,105540.0,0.29070237]
[1749319066121,4.80362725,105550.0,105540.0,0.29070237]
[1749319066562,4.81028572,105550.0,105540.0,0.29070237]
[1749319066760,4.82804167,105550.0,105540.0,0.29070237]
[1749319067844,4.8213832,105550.0,105540.0,0.29070237]
[1749319068049,4.80362725,105550.0,105540.0,0.29070237]
[1749319068281,4.82804211,105550.0,105540.0,0.29070237]
[1749319068977,4.82804147,105550.0,105540.0,0.29070237]
[1749319069187,4.82138162,105550.0,105540.0,0.29070237]
[1749319069427,4.81028516,105550.0,105540.0,0.29070237]
[1749319069620,4.80362725,105550.0,105540.0,0.29070237]
[1749319069826,4.82803941,105550.0,105540.0,0.29070237]
[1749319071064,4.80362725,105550.0,105540.0,0.29070237]
[1749319071262,4.82803952,105550.0,105540.0,0.29070237]
[1749319071523,4.82803886,105550.0,105540.0,0.29070237]
[1749319071732,4.82803901,105550.0,105540.0,0.29070237]
[1749319072798,4.82138115,105550.0,105540.0,0.29070237]
[1749319073013,4.82803938,105550.0,105540.0,0.29070237]
[1749319073241,4.82138152,105550.0,105540.0,0.29070237]
[1749319073460,4.82803927,105550.0,105540.0,0.29070237]
[1749319073671,4.82803944,105550.0,105540.0,0.29070237]
[1749319074290,4.82803956,105550.0,105540.0,0.29070237]
[1749319074424,4.81028515,105550.0,105540.0,0.29070237]
[1749319074657,4.81028516,105550.0,105540.0,0.29070237]
[1749319075043,4.8102851,105550.0,105540.0,0.29070237]
[1749319075246,4.81028513,105550.0,105540.0,0.29070237]
[1749319075484,4.82803951,105550.0,105540.0,0.29070237]
[1749319075685,4.80362725,105550.0,105540.0,0.29070237]
[1749319075928,4.82803941,105550.0,105540.0,0.29070237]
[1749319076370,4.82803926,105550.0,105540.0,0.29070237]
[1749319076512,4.82138144,105550.0,105540.0,0.29070237]
[1749319076712,4.82803924,105550.0,105540.0,0.29070237]
[1749319076989,4.82803923,105550.0,105540.0,0.29070237]
[1749319077198,4.80362725,105550.0,105540.0,0.29070237]
[1749319077526,4.82803919,105550.0,105540.0,0.29070237]
[1749319078294,4.8213814,105550.0,105540.0,0.29070237]
[1749319078719,4.8280392,105550.0,105540.0,0.29070237]
[1749319079570,4.81028505,105550.0,105540.0,0.29070237]
[1749319079776,4.82138166,105550.0,105540.0,0.29070237]
[1749319080003,4.8213822,105550.0,105540.0,0.29070237]
[1749319080421,4.8213821,105550.0,105540.0,0.29070237]
[1749319080629,4.82804017,105550.0,105540.0,0.29070237]
[1749319080837,4.81028532,105550.0,105540.0,0.29070237]
[1749319081086,4.82138211,105550.0,105540.0,0.29070237]
[1749319081264,4.82804018,105550.0,105540.0,0.29070237]
[1749319081799,4.82138211,105550.0,105540.0,0.29070237]
[1749319082223,4.81028532,105550.0,105540.0,0.29070237]
[1749319082426,4.80362725,105550.0,105540.0,0.29070237]
[1749319082637,4.82804018,105550.0,105540.0,0.29070237]
[1749319082954,4.80362725,105550.0,105540.0,0.29070237]
[1749319083159,4.82804018,105550.0,105540.0,0.29070237]
[1749319083385,4.81028532,105550.0,105540.0,0.29070237]
[1749319083566,4.82138374,105550.0,105540.0,0.29070237]
[1749319083781,4.82804242,105550.0,105540.0,0.29070237]
[1749319083970,4.80362725,105550.0,105540.0,0.29070237]
[1749319084144,4.83768374,105550.0,105540.0,0.29070237]
[1749319084346,4.8443424,105550.0,105540.0,0.29070237]
[1749319084551,4.81992725,105550.0,105540.0,0.29070237]
[1749319084809,4.84434238,105550.0,105540.0,0.29070237]
[1749319084960,4.81028592,105550.0,105540.0,0.29070237]
[1749319085169,4.82804237,105550.0,105540.0,0.29070237]
[1749319085350,4.81028592,105550.0,105540.0,0.29070237]
[1749319085956,4.8213837,105550.0,105540.0,0.29070237]
[1749319086188,4.81028592,105550.0,105540.0,0.29070237]
[1749319086406,4.80362725,105550.0,105540.0,0.29070237]
[1749319086613,4.81028591,105550.0,105540.0,0.29070237]
[1749319086821,4.82804242,105550.0,105540.0,0.29070237]
[1749319087036,4.82138375,105550.0,105540.0,0.29070237]
[1749319087274,4.82804242,105550.0,105540.0,0.29070237]
[1749319087482,4.80362725,105550.0,105540.0,0.29070237]
[1749319087693,4.82138374,105550.0,105540.0,0.29070237]
[1749319087893,4.82804256,105550.0,105540.0,0.29070237]
[1749319088562,4.82804279,105550.0,105540.0,0.29070237]
[1749319088762,4.82804327,105550.0,105540.0,0.29070237]
[1749319088990,4.80362725,105550.0,105540.0,0.29070237]
[1749319089410,4.81028613,105550.0,105540.0,0.29070237]
[1749319089621,4.80362725,105550.0,105540.0,0.29070237]
[1749319089830,4.82804316,105550.0,105540.0,0.29070237]
[1749319090052,4.81028613,105550.0,105540.0,0.29070237]
[1749319090264,4.81028614,105550.0,105540.0,0.29070237]
[1749319090473,4.82138429,105550.0,105540.0,0.29070237]
[1749319090680,4.82804318,105550.0,105540.0,0.29070237]
[1749319091761,4.80362725,105550.0,105540.0,0.29070237]
[1749319091989,4.82804316,105550.0,105540.0,0.29070237]
[1749319092192,4.82804317,105550.0,105540.0,0.29070237]
[1749319092388,4.82804318,105550.0,105540.0,0.29070237]
[1749319092811,4.80362725,105550.0,105540.0,0.29070237]
[1749319093073,4.82804316,105550.0,105540.0,0.29070237]
[1749319093645,4.80362725,105550.0,105540.0,0.29070237]
[1749319093856,4.82138428,105550.0,105540.0,0.29070237]
[1749319094059,4.82804318,105550.0,105540.0,0.29070237]
[1749319094265,4.81028613,105550.0,105540.0,0.29070237]
[1749319094469,4.82138428,105550.0,105540.0,0.29070237]
[1749319094670,4.80362725,105550.0,105540.0,0.29070237]
[1749319095076,4.81028614,105550.0,105540.0,0.29070237]
[1749319095300,4.82804318,105550.0,105540.0,0.29070237]
[1749319095487,4.81028614,105550.0,105540.0,0.29070237]
[1749319095693,4.82804318,105550.0,105540.0,0.29070237]
[1749319096126,4.80362725,105550.0,105540.0,0.29070237]
[1749319096347,4.81028613,105550.0,105540.0,0.29070237]
[1749319096874,4.80362725,105550.0,105540.0,0.29070237]
[1749319097131,4.82804316,105550.0,105540.0,0.29070237]
[1749319097350,4.82138427,105550.0,105540.0,0.29070237]
[1749319097586,4.82804315,105550.0,105540.0,0.29070237]
[1749319098029,4.82804307,105550.0,105540.0,0.29070237]
[1749319098238,4.82138404,105550.0,105540.0,0.29070237]
[1749319098484,4.82804284,105550.0,105540.0,0.29070237]
[1749319098729,4.82138404,105550.0,105540.0,0.29070237]
[1749319098991,4.80362725,105550.0,105540.0,0.29070237]
[1749319099194,4.82138379,105550.0,105540.0,0.29070237]
[1749319099436,4.82804249,105550.0,105540.0,0.29070237]
[1749319099674,4.80362725,105550.0,105540.0,0.29070237]
[1749319099900,4.81028595,105550.0,105540.0,0.29070237]
[1749319100125,4.82804254,105550.0,105540.0,0.29070237]
[1749319100302,4.80362725,105550.0,105540.0,0.29070237]
[1749319100534,4.82138385,105550.0,105540.0,0.29070237]
[1749319100909,4.80362725,105550.0,105540.0,0.29070237]
[1749319101114,4.81028597,105550.0,105540.0,0.29070237]
[1749319101302,4.80362725,105550.0,105540.0,0.29070237]
[1749319101732,4.81028588,105550.0,105540.0,0.29070237]
[1749319101965,4.82138357,105550.0,105540.0,0.29070237]
[1749319102203,4.81028586,105550.0,105540.0,0.29070237]
[1749319102429,4.8213832,105550.0,105540.0,0.29070237]
[1749319102637,4.80362725,105550.0,105540.0,0.29070237]
[1749319102853,4.81028583,105550.0,105540.0,0.29070237]
[1749319103052,4.82138349,105550.0,105540.0,0.29070237]
[1749319103232,4.82138347,105550.0,105540.0,0.29070237]
[1749319103431,4.80362725,105550.0,105540.0,0.29070237]
[1749319103633,4.82138349,105550.0,105540.0,0.29070237]
[1749319103844,4.82804208,105550.0,105540.0,0.29070237]
[1749319104008,4.82138152,105550.0,105540.0,0.29070237]
[1749319104209,4.82803937,105550.0,105540.0,0.29070237]
[1749319104413,4.80362725,105550.0,105540.0,0.29070237]
[1749319104668,4.82138152,105550.0,105540.0,0.29070237]
[1749319104894,4.82803935,105550.0,105540.0,0.29070237]
[1749319105097,4.82138159,105550.0,105540.0,0.29070237]
[1749319105235,4.82803944,105550.0,105540.0,0.29070237]
[1749319105432,4.82138153,105550.0,105540.0,0.29070237]
[1749319105636,4.82803938,105550.0,105540.0,0.29070237]
[1749319105840,4.81028473,105550.0,105540.0,0.29070237]
[1749319106040,4.82803803,105550.0,105540.0,0.00402237]
[1749319106323,4.81028474,105550.0,105540.0,0.00402237]
[1749319106533,4.82803806,105550.0,105540.0,0.00402237]
[1749319106713,4.80362725,105550.0,105540.0,0.00402237]
[1749319107071,4.82803806,105550.0,105540.0,0.00402237]
[1749319107292,4.81028474,105550.0,105540.0,0.00402237]
[1749319107703,4.82138057,105550.0,105540.0,0.00402237]
[1749319107901,4.82803806,105550.0,105540.0,0.00402237]
[1749319108066,4.82138057,105550.0,105540.0,0.00402237]
[1749319108270,4.81028475,105550.0,105540.0,0.00402237]
[1749319108521,4.82803808,105550.0,105540.0,0.00402237]
[1749319108738,4.81028475,105550.0,105540.0,0.00402237]
[1749319108925,4.82803809,105550.0,105540.0,0.00402237]
[1749319109144,4.8280351,105550.0,105540.0,0.00402237]
[1749319109717,4.82803512,105550.0,105540.0,0.00402237]
[1749319110106,4.81028394,105550.0,105540.0,0.00402237]